fUSD/lending_fUSD_20240407
["ID","MTS","AMOUNT","RATE_DAILY","PERIOD"]
[321718746,1712448653918,-500.0,0.00021917,2]
[321718747,1712448653927,-500.0,0.00021917,2]
[321718748,1712448653941,-500.0,0.00021917,2]
[321718749,1712448653950,-328.51,0.00021917,2]
[321718750,1712448653959,-511.46023971,0.00021917,2]
[321718751,1712448653968,-500.0,0.00021917,2]
[321718752,1712448653978,-500.0,0.00021917,2]
[321718753,1712448653987,-500.0,0.00021917,2]
[321718754,1712448653996,-500.0,0.00021917,2]
[321718755,1712448654006,-192.0870333,0.00021917,2]
[321718756,1712448654016,-500.0,0.00021917,2]
[321718757,1712448654026,-500.0,0.00021917,2]
[321718758,1712448654035,-500.0,0.00021917,2]
[321718759,1712448654044,-500.0,0.00021917,2]
[321718760,1712448654053,-500.0,0.00021917,2]
[321718761,1712448654062,-500.0,0.00021917,2]
[321718762,1712448654071,-500.0,0.00021917,2]
[321718763,1712448654080,-500.0,0.00021917,2]
[321718764,1712448654089,-500.0,0.00021917,2]
[321718765,1712448654098,-500.0,0.00021917,2]
[321718766,1712448654107,-500.0,0.00021917,2]
[321718767,1712448654116,-500.0,0.00021917,2]
[321718768,1712448654126,-500.0,0.00021917,2]
[321718769,1712448654135,-515.57570707,0.00021917,2]
[321718770,1712448654144,-446.75,0.00021917,2]
[321718771,1712448654153,-500.0,0.00021917,2]
[321718772,1712448654163,-500.0,0.00021917,2]
[321718773,1712448654172,-500.0,0.00021917,2]
[321718774,1712448654182,-500.0,0.00021917,2]
[321718775,1712448654192,-264.64,0.00021917,2]
[321718776,1712448654200,-500.0,0.00021917,2]
[321718777,1712448654209,-500.0,0.00021917,2]
[321718778,1712448654219,-500.0,0.00021917,2]
[321718779,1712448654228,-500.0,0.00021917,2]
[321718780,1712448654238,-500.0,0.00021917,2]
[321718781,1712448654247,-625.01181859,0.00021917,2]
[321718782,1712448654256,-500.0,0.00021917,2]
[321718783,1712448654266,-500.0,0.00021917,2]
[321718784,1712448654275,-500.0,0.00021917,2]
[321718785,1712448654285,-197.8,0.00021917,2]
[321718786,1712448654294,-500.0,0.00021917,2]
[321718787,1712448654303,-500.0,0.00021917,2]
[321718788,1712448654311,-500.0,0.00021917,2]
[321718789,1712448654321,-500.0,0.00021917,2]
[321718790,1712448654329,-500.0,0.00021917,2]
[321718791,1712448654338,-518.45,0.00021917,2]
[321718792,1712448654348,-500.0,0.00021917,2]
[321718793,1712448654357,-500.0,0.00021917,2]
[321718794,1712448654366,-500.0,0.00021917,2]
[321718795,1712448654375,-500.0,0.00021917,2]
[321718796,1712448654384,-500.0,0.00021917,2]
[321718797,1712448654394,-500.0,0.00021917,2]
[321718798,1712448654403,-500.0,0.00021917,2]
[321718799,1712448654412,-282.26044223,0.00021917,2]
[321718800,1712448654421,-500.0,0.00021917,2]
[321718801,1712448654430,-433.14977304,0.00021917,2]
[321718802,1712448654439,-318.33,0.00021917,2]
[321718803,1712448654448,-500.0,0.00021917,2]
[321718804,1712448654458,-500.0,0.00021917,2]
[321718805,1712448654473,-500.0,0.00021917,2]
[321718806,1712448654482,-313.92,0.00021917,2]
[321718807,1712448654491,-500.0,0.00021917,2]
[321718808,1712448654500,-500.0,0.00021917,2]
[321718809,1712448654510,-500.0,0.00021917,2]
[321718810,1712448654519,-500.0,0.00021917,2]
[321718811,1712448654527,-500.0,0.00021917,2]
[321718812,1712448654537,-500.0,0.00021917,2]
[321718813,1712448654546,-500.0,0.00021917,2]
[321718814,1712448654555,-500.0,0.00021917,2]
[321718815,1712448654564,-500.0,0.00021917,2]
[321718816,1712448654574,-500.0,0.00021917,2]
[321718817,1712448654585,-500.0,0.00021917,2]
[321718818,1712448654597,-500.0,0.00021917,2]
[321718819,1712448654606,-555.13,0.00021917,2]
[321718820,1712448654620,-500.0,0.00021917,2]
[321718821,1712448654630,-500.0,0.00021917,2]
[321718822,1712448654641,-500.0,0.00021917,2]
[321718823,1712448654651,-500.0,0.00021917,2]
[321718824,1712448654660,-500.0,0.00021917,2]
[321718825,1712448654670,-500.0,0.00021917,2]
[321718826,1712448654679,-500.0,0.00021917,2]
[321718827,1712448654689,-500.0,0.00021917,2]
[321718828,1712448654700,-500.0,0.00021917,2]
[321718829,1712448654710,-500.0,0.00021917,2]
[321718830,1712448654720,-500.0,0.00021917,2]
[321718831,1712448654731,-500.0,0.00021917,2]
[321718832,1712448654741,-500.0,0.00021917,2]
[321718833,1712448654751,-500.0,0.00021917,2]
[321718834,1712448654762,-500.0,0.00021917,2]
[321718835,1712448654772,-500.0,0.00021917,2]
[321718836,1712448654783,-500.0,0.00021917,2]
[321718837,1712448654793,-500.0,0.00021917,2]
[321718838,1712448654803,-500.0,0.00021917,2]
[321718839,1712448654813,-500.0,0.00021917,2]
[321718840,1712448654823,-500.0,0.00021917,2]
[321718841,1712448654834,-500.0,0.00021917,2]
[321718842,1712448654844,-170.82,0.00021917,2]
[321718843,1712448654854,-500.0,0.00021917,2]
[321718844,1712448654864,-500.0,0.00021917,2]
[321718845,1712448654875,-500.0,0.00021917,2]
[321718846,1712448654886,-500.0,0.00021917,2]
[321718847,1712448654896,-500.0,0.00021917,2]
[321718848,1712448654905,-500.0,0.00021917,2]
[321718849,1712448654914,-500.0,0.00021917,2]
[321718850,1712448654924,-500.0,0.00021917,2]
[321718851,1712448654935,-500.0,0.00021917,2]
[321718852,1712448654945,-500.0,0.00021917,2]
[321718853,1712448654955,-500.0,0.00021917,2]
[321718854,1712448654964,-500.0,0.00021917,2]
[321718855,1712448654974,-500.0,0.00021917,2]
[321718856,1712448654983,-500.0,0.00021917,2]
[321718857,1712448654992,-611.85,0.00021917,2]
[321718858,1712448655002,-500.0,0.00021917,2]
[321718859,1712448655011,-500.0,0.00021917,2]
[321718860,1712448655020,-500.0,0.00021917,2]
[321718861,1712448655031,-500.0,0.00021917,2]
[321718862,1712448655040,-500.0,0.00021917,2]
[321718863,1712448655051,-500.0,0.00021917,2]
[321718864,1712448655061,-500.0,0.00021917,2]
[321718865,1712448655071,-500.0,0.00021917,2]
[321718866,1712448655079,-500.0,0.00021917,2]
[321718867,1712448655088,-500.0,0.00021917,2]
[321718868,1712448655099,-500.0,0.00021917,2]
[321718869,1712448655108,-500.0,0.00021917,2]
[321718870,1712448655119,-500.0,0.00021917,2]
[321718871,1712448655128,-500.0,0.00021917,2]
[321718872,1712448655138,-500.0,0.00021917,2]
[321718873,1712448655148,-570.91718897,0.00021917,2]
[321718874,1712448655157,-500.0,0.00021917,2]
[321718875,1712448655167,-269.82309984,0.00021917,2]
[321718876,1712448655176,-500.0,0.00021917,2]
[321718877,1712448655185,-500.0,0.00021917,2]
[321718878,1712448655194,-500.0,0.00021917,2]
[321718879,1712448655203,-500.0,0.00021917,2]
[321718880,1712448655213,-500.0,0.00021917,2]
[321718881,1712448655222,-500.0,0.00021917,2]
[321718882,1712448655231,-500.0,0.00021917,2]
[321718883,1712448655241,-195.55,0.00021917,2]
[321718884,1712448655250,-500.0,0.00021917,2]
[321718885,1712448655259,-500.0,0.00021917,2]
[321718886,1712448655269,-500.0,0.00021917,2]
[321718887,1712448655279,-500.0,0.00021917,2]
[321718888,1712448655291,-577.24,0.00021917,2]
[321718889,1712448655301,-500.0,0.00021917,2]
[321718890,1712448655310,-500.0,0.00021917,2]
[321718891,1712448655321,-500.0,0.00021917,2]
[321718892,1712448655332,-500.0,0.00021917,2]
[321718893,1712448655342,-500.0,0.00021917,2]
[321718894,1712448655353,-500.0,0.00021917,2]
[321718895,1712448655363,-500.0,0.00021917,2]
[321718896,1712448655372,-500.0,0.00021917,2]
[321718897,1712448655383,-500.0,0.00021917,2]
[321718898,1712448655392,-500.0,0.00021917,2]
[321718899,1712448655401,-500.0,0.00021917,2]
[321718900,1712448655411,-500.0,0.00021917,2]
[321718901,1712448655422,-500.0,0.00021917,2]
[321718902,1712448655431,-500.0,0.00021917,2]
[321718903,1712448655442,-500.0,0.00021917,2]
[321718904,1712448655450,-326.08,0.00021917,2]
[321718905,1712448655459,-500.0,0.00021917,2]
[321718906,1712448655468,-500.0,0.00021917,2]
[321718907,1712448655478,-500.0,0.00021917,2]
[321718908,1712448655487,-500.0,0.00021917,2]
[321718909,1712448655496,-500.0,0.00021917,2]
[321718910,1712448655505,-291.24320067,0.00021917,2]
[321718911,1712448655514,-500.0,0.00021917,2]
[321718912,1712448655523,-500.0,0.00021917,2]
[321718913,1712448655532,-500.0,0.00021917,2]
[321718914,1712448655541,-500.0,0.00021917,2]
[321718915,1712448655549,-500.0,0.00021917,2]
[321718916,1712448655559,-500.0,0.00021917,2]
[321718917,1712448655568,-348.35,0.00021917,2]
[321718918,1712448655577,-500.0,0.00021917,2]
[321718919,1712448655586,-500.0,0.00021917,2]
[321718920,1712448655594,-500.0,0.00021917,2]
[321718921,1712448655603,-500.0,0.00021917,2]
[321718922,1712448655612,-500.0,0.00021917,2]
[321718923,1712448655622,-500.0,0.00021917,2]
[321718924,1712448655631,-500.0,0.00021917,2]
[321718925,1712448655640,-500.0,0.00021917,2]
[321718926,1712448655651,-500.0,0.00021917,2]
[321718927,1712448655662,-500.0,0.00021917,2]
[321718928,1712448655670,-500.0,0.00021917,2]
[321718929,1712448655685,-500.0,0.00021917,2]
[321718930,1712448655694,-500.0,0.00021917,2]
[321718931,1712448655703,-500.0,0.00021917,2]
[321718932,1712448655712,-500.0,0.00021917,2]
[321718933,1712448655721,-500.0,0.00021917,2]
[321718934,1712448655730,-160.12,0.00021917,2]
[321718935,1712448655739,-500.0,0.00021917,2]
[321718936,1712448655748,-500.0,0.00021917,2]
[321718937,1712448655757,-500.0,0.00021917,2]
[321718938,1712448655766,-500.0,0.00021917,2]
[321718939,1712448655775,-500.0,0.00021917,2]
[321718940,1712448655784,-500.0,0.00021917,2]
[321718941,1712448655793,-500.0,0.00021917,2]
[321718942,1712448655802,-500.0,0.00021917,2]
[321718943,1712448655811,-500.0,0.00021917,2]
[321718944,1712448655820,-500.0,0.00021917,2]
[321718945,1712448655829,-500.0,0.00021917,2]
[321718946,1712448655839,-500.0,0.00021917,2]
[321718947,1712448655848,-500.0,0.00021917,2]
[321718948,1712448655858,-500.0,0.00021917,2]
[321718949,1712448655867,-500.0,0.00021917,2]
[321718950,1712448655877,-500.0,0.00021917,2]
[321718951,1712448655886,-500.0,0.00021917,2]
[321718952,1712448655895,-500.0,0.00021917,2]
[321718953,1712448655904,-239.97,0.00021917,2]
[321718954,1712448655913,-500.0,0.00021917,2]
[321718955,1712448655922,-500.0,0.00021917,2]
[321718956,1712448655932,-250.0,0.00021918,2]
[321718957,1712448655944,-151.0,0.00021918,2]
[321718958,1712448655953,-2756.82,0.00021918,2]
[321718959,1712448655962,-150.0,0.00021918,2]
[321718960,1712448655971,-192.289917,0.00021918,2]
[321718961,1712448655981,-6795.7357625,0.0002193,2]
[321718962,1712448655991,-5350.0,0.0002199,2]
[321718963,1712448656000,-5350.0,0.0002199,3]
[321718964,1712448656010,-6287.48577326,0.00021991,2]
[321718965,1712448656019,-1951.79805879,0.00021994,2]
[321718966,1712448656028,-22781.7864999,0.00021996,2]
[321718967,1712448656037,-1642.95,0.00021998,2]
[321718968,1712448656046,-500.0,0.00021998,2]
[321718969,1712448656055,-500.0,0.00021998,2]
[321718970,1712448656064,-500.0,0.00021998,2]
[321718971,1712448656073,-973.76,0.00021998,2]
[321718972,1712448656083,-811.87,0.00021998,2]
[321718973,1712448656092,-988.94,0.00021998,2]
[321718974,1712448656231,-890.02,0.00021998,2]
[321718975,1712448656242,-500.0,0.00021998,2]
[321718976,1712448656252,-533.12,0.00021998,2]
[321718977,1712448656263,-574.92841163,0.00021998,2]
[321718978,1712448656273,-569.71,0.00021998,2]
[321718979,1712448656283,-1354.26,0.00021998,2]
[321718980,1712448656295,-575.22,0.00021998,2]
[321718981,1712448656304,-500.0,0.00021998,2]
[321718982,1712448656315,-500.0,0.00021998,2]
[321718983,1712448656326,-2137.81,0.00021998,2]
[321718984,1712448656336,-500.0,0.00021998,2]
[321718985,1712448656346,-500.0,0.00021998,2]
[321718986,1712448656356,-500.0,0.00021998,2]
[321718987,1712448656365,-500.0,0.00021998,2]
[321718988,1712448656374,-500.0,0.00021998,2]
[321718989,1712448656384,-500.0,0.00021998,2]
[321718990,1712448656393,-500.0,0.00021998,2]
[321718991,1712448656401,-500.0,0.00021998,2]
[321718992,1712448656411,-526.18,0.00021999,2]
[321718993,1712448656420,-526.18,0.00021999,2]
[321718994,1712448656429,-526.18,0.00021999,2]
[321718995,1712448656439,-526.18,0.00021999,2]
[321718996,1712448656448,-526.18,0.00021999,2]
[321718997,1712448656456,-526.18,0.00021999,2]
[321718998,1712448656465,-526.18,0.00021999,2]
[321718999,1712448656474,-1642.95,0.00021999,2]
[321719000,1712448656483,-1642.95,0.00021999,2]
[321719001,1712448656491,-1642.95,0.00021999,2]
[321719002,1712448656500,-1642.95,0.00021999,2]
[321719003,1712448656509,-1642.95,0.00021999,2]
[321719004,1712448656518,-1642.95,0.00021999,2]
[321719005,1712448656527,-1265.86,0.00021999,2]
[321719006,1712448656536,-1265.86,0.00021999,2]
[321719007,1712448656546,-1265.86,0.00021999,2]
[321719008,1712448656555,-1265.86,0.00021999,2]
[321719009,1712448656564,-1265.86,0.00021999,2]
[321719010,1712448656574,-1265.86,0.00021999,2]
[321719011,1712448656583,-1265.86,0.00021999,2]
[321719012,1712448656592,-500.0,0.00021999,2]
[321719013,1712448656601,-189.52,0.00021999,2]
[321719014,1712448656610,-500.0,0.00021999,2]
[321719015,1712448656619,-321.0,0.00021999,2]
[321719016,1712448656628,-500.0,0.00021999,2]
[321719017,1712448656638,-500.0,0.00021999,2]
[321719018,1712448656647,-535.62,0.00021999,2]
[321719019,1712448656656,-973.76,0.00021999,2]
[321719020,1712448656666,-973.76,0.00021999,2]
[321719021,1712448656675,-973.76,0.00021999,2]
[321719022,1712448656685,-973.76,0.00021999,2]
[321719023,1712448656695,-973.76,0.00021999,2]
[321719024,1712448656704,-973.76,0.00021999,2]
[321719025,1712448656714,-811.87,0.00021999,2]
[321719026,1712448656723,-811.87,0.00021999,2]
[321719027,1712448656732,-811.87,0.00021999,2]
[321719028,1712448656741,-811.87,0.00021999,2]
[321719029,1712448656750,-811.87,0.00021999,2]
[321719030,1712448656759,-811.87,0.00021999,2]
[321719031,1712448656768,-988.94,0.00021999,2]
[321719032,1712448656777,-988.94,0.00021999,2]
[321719033,1712448656786,-988.94,0.00021999,2]
[321719034,1712448656795,-988.94,0.00021999,2]
[321719035,1712448656804,-988.94,0.00021999,2]
[321719036,1712448656813,-988.94,0.00021999,2]
[321719037,1712448656822,-890.02,0.00021999,2]
[321719038,1712448656831,-890.02,0.00021999,2]
[321719039,1712448656840,-890.02,0.00021999,2]
[321719040,1712448656849,-890.02,0.00021999,2]
[321719041,1712448656858,-890.02,0.00021999,2]
[321719042,1712448656869,-890.02,0.00021999,2]
[321719043,1712448656882,-251.48,0.00021999,2]
[321719044,1712448656892,-824.04,0.00021999,2]
[321719045,1712448656901,-824.04,0.00021999,2]
[321719046,1712448656910,-824.04,0.00021999,2]
[321719047,1712448656919,-824.04,0.00021999,2]
[321719048,1712448656929,-824.04,0.00021999,2]
[321719049,1712448656941,-824.04,0.00021999,2]
[321719050,1712448656950,-824.04,0.00021999,2]
[321719051,1712448656962,-500.0,0.00021999,2]
[321719052,1712448656972,-500.0,0.00021999,2]
[321719053,1712448656982,-500.0,0.00021999,2]
[321719054,1712448656992,-215.4,0.00021999,2]
[321719055,1712448657001,-533.12,0.00021999,2]
[321719056,1712448657011,-533.12,0.00021999,2]
[321719057,1712448657021,-533.12,0.00021999,2]
[321719058,1712448657031,-533.12,0.00021999,2]
[321719059,1712448657040,-533.12,0.00021999,2]
[321719060,1712448657050,-533.12,0.00021999,2]
[321719061,1712448657059,-569.71,0.00021999,2]
[321719062,1712448657069,-569.71,0.00021999,2]
[321719063,1712448657078,-569.71,0.00021999,2]
[321719064,1712448657088,-569.71,0.00021999,2]
[321719065,1712448657097,-569.71,0.00021999,2]
[321719066,1712448657107,-569.71,0.00021999,2]
[321719067,1712448657117,-1354.26,0.00021999,2]
[321719068,1712448657126,-1354.26,0.00021999,2]
[321719069,1712448657135,-641.83,0.00021999,2]
[321719070,1712448657145,-641.83,0.00021999,2]
[321719071,1712448657154,-1354.26,0.00021999,2]
[321719072,1712448657164,-1354.26,0.00021999,2]
[321719073,1712448657173,-641.83,0.00021999,2]
[321719074,1712448657183,-1354.26,0.00021999,2]
[321719075,1712448657193,-641.83,0.00021999,2]
[321719076,1712448657202,-1354.26,0.00021999,2]
[321719077,1712448657212,-641.83,0.00021999,2]
[321719078,1712448657221,-641.83,0.00021999,2]
[321719079,1712448657231,-641.83,0.00021999,2]
[321719080,1712448657240,-575.22,0.00021999,2]
[321719081,1712448657250,-575.22,0.00021999,2]
[321719082,1712448657259,-500.0,0.00021999,2]
[321719083,1712448657268,-575.22,0.00021999,2]
[321719084,1712448657277,-500.0,0.00021999,2]
[321719085,1712448657286,-575.22,0.00021999,2]
[321719086,1712448657295,-500.0,0.00021999,2]
[321719087,1712448657304,-575.22,0.00021999,2]
[321719088,1712448657313,-288.15,0.00021999,2]
[321719089,1712448657323,-575.22,0.00021999,2]
[321719090,1712448657332,-500.0,0.00021999,2]
[321719091,1712448657342,-500.0,0.00021999,2]
[321719092,1712448657352,-500.0,0.00021999,2]
[321719093,1712448657362,-500.0,0.00021999,2]
[321719094,1712448657371,-500.0,0.00021999,2]
[321719095,1712448657380,-500.0,0.00021999,2]
[321719096,1712448657390,-2137.81,0.00021999,2]
[321719097,1712448657399,-2137.81,0.00021999,2]
[321719098,1712448657409,-2137.81,0.00021999,2]
[321719099,1712448657418,-2137.81,0.00021999,2]
[321719100,1712448657427,-2137.81,0.00021999,2]
[321719101,1712448657437,-2137.81,0.00021999,2]
[321719102,1712448657446,-500.0,0.00021999,2]
[321719103,1712448657456,-500.0,0.00021999,2]
[321719104,1712448657465,-500.0,0.00021999,2]
[321719105,1712448657476,-157.07,0.00021999,2]
[321719106,1712448657486,-500.0,0.00021999,2]
[321719107,1712448657496,-500.0,0.00021999,2]
[321719108,1712448657506,-500.0,0.00021999,2]
[321719109,1712448657515,-500.0,0.00021999,2]
[321719110,1712448657527,-500.0,0.00021999,2]
[321719111,1712448657537,-345.13006873,0.00021999,2]
[321719112,1712448657547,-609.01,0.00021999,2]
[321719113,1712448657559,-500.0,0.00021999,2]
[321719114,1712448657569,-301.19,0.00021999,2]
[321719115,1712448657577,-500.0,0.00021999,2]
[321719116,1712448657587,-500.0,0.00021999,2]
[321719117,1712448657597,-500.0,0.00021999,2]
[321719118,1712448657606,-500.0,0.00021999,2]
[321719119,1712448657615,-500.0,0.00021999,2]
[321719120,1712448657624,-500.0,0.00021999,2]
[321719121,1712448657633,-500.0,0.00021999,2]
[321719122,1712448657642,-500.0,0.00021999,2]
[321719123,1712448657651,-500.0,0.00021999,2]
[321719124,1712448657660,-349.89,0.00021999,2]
[321719125,1712448657669,-500.0,0.00021999,2]
[321719126,1712448657678,-502.59,0.00021999,2]
[321719127,1712448657688,-500.0,0.00021999,2]
[321719128,1712448657698,-500.0,0.00021999,2]
[321719129,1712448657707,-572.44855367,0.00022,2]
[321719130,1712448657715,-330484.78353491,0.00022,2]
[321719131,1712448658012,-3583.19074043,0.00022,2]
[321719132,1712448658281,-500.0,0.00021917,2]
[321719133,1712448658291,-503.01314372,0.00021917,2]
[321719134,1712448658300,-306.40029222,0.00021917,2]
[321719135,1712448658312,-193.59970778,0.00021917,2]
[321719136,1712448658321,-500.0,0.00021917,2]
[321719137,1712448658330,-214.3601193,0.00021917,2]
[321719138,1712448658341,-287.86860182,0.00021917,2]
[321719139,1712448658352,-100.28356766,0.00021917,2]
[321719140,1712448658361,-500.0,0.00021917,2]
[321719141,1712448658370,-1016.54789655,0.00021917,2]
[321719142,1712448658390,-172.61210345,0.00021917,2]
[321719143,1712448658399,-347.70638174,0.00021917,2]
[321719144,1712448658436,-152.29361826,0.00021917,2]
[321719145,1712448658445,-1189.16,0.00021917,2]
[321719146,1712448658454,-500.0,0.00021917,2]
[321719147,1712448658463,-1189.16,0.00021917,2]
[321719148,1712448658472,-500.0,0.00021917,2]
[321719149,1712448658481,-500.0,0.00021998,2]
[321719150,1712448658618,-500.0,0.00021998,2]
[321719151,1712448658628,-395.89476126,0.00021999,2]
[321719152,1712448658637,-500.0,0.00021999,2]
[321719153,1712448658647,-500.0,0.00021999,2]
[321719154,1712448658656,-500.0,0.00021999,2]
[321719155,1712448658665,-500.0,0.00021999,2]
[321719156,1712448658674,-500.0,0.00021999,2]
[321719157,1712448658683,-500.0,0.00021999,2]
[321719158,1712448658694,-51932.42864003,0.00022,2]
[321719159,1712448659226,334.03875437,0.00021813,2]
[321719160,1712448659820,19141.852365,0.0002152,2]
[321719161,1712448686251,2533.67329743,0.00016438,2]
[321719162,1712448699442,150.0,0.000215,2]
[321719163,1712448699850,169.007119,0.00021,2]
[321719164,1712448708206,2533.67329743,0.00016438,2]
[321719165,1712448709710,5117.21502055,0.00021817,2]
[321719166,1712448712970,3013.3751,0.00020634,2]
[321719167,1712448719874,8948.853367,0.0002181,2]
[321719168,1712448720025,940.29888999,0.00021,2]
[321719169,1712448722995,364.69227916,0.00021,2]
[321719170,1712448723530,150.0,0.00021857,2]
[321719171,1712448725669,127.85174515,0.00021,2]
[321719172,1712448786966,-168.12389308,0.00021,2]
[321719173,1712448786992,-12.47610692,0.00021,2]
[321719174,1712448788285,868.59765889,0.00019798,2]
[321719175,1712448800091,752.03,0.00019232,2]
[321719176,1712448811509,150.0,0.00021999,10]
[321719177,1712448824271,296.099225,0.00019232,2]
[321719178,1712448829279,17551.80846123,0.00019232,2]
[321719179,1712448832532,7481.10505521,0.00019232,2]
[321719180,1712448832804,323.07531063,0.00019232,2]
[321719181,1712448833332,1366.97120273,0.00019232,2]
[321719182,1712448834063,1033.74556397,0.00019232,2]
[321719183,1712448844200,296.099225,0.00019232,2]
[321719184,1712448848780,310.90957607,0.00019232,2]
[321719185,1712448849318,561.9044911,0.00019232,2]
[321719186,1712448850517,7481.10505521,0.00019232,2]
[321719187,1712448852063,1033.74556397,0.00019232,2]
[321719188,1712448862196,157.80090527,0.00019232,2]
[321719189,1712448874068,1033.74556397,0.00019232,2]
[321719190,1712448874530,7481.10505521,0.00019232,2]
[321719191,1712448892079,664.09796233,0.00019232,2]
[321719192,1712448892536,7481.10505521,0.00019232,2]
[321719193,1712448908569,4256.6707909,0.00019232,2]
[321719194,1712449072227,318.55745475,0.00019232,2]
[321719195,1712449075331,19616.28435061,0.00019232,2]
[321719196,1712449080562,7474.77182007,0.00019232,2]
[321719197,1712449082094,1032.68672601,0.00019232,2]
[321719198,1712449087983,155.0,0.00019232,2]
[321719199,1712449088290,295.82660405,0.00019232,2]
[321719200,1712449091513,3022.68158238,0.00019232,2]
[321719201,1712449117398,24610.27242956,0.00019232,2]
[321719202,1712449122143,1467.25162719,0.00019232,2]
[321719203,1712449131301,6531.04063295,0.00019232,2]
[321719204,1712449138067,291.65630346,0.00019232,2]
[321719205,1712449253879,714.42,0.00018888,2]
[321719206,1712449320142,18347.28014808,0.00018888,2]
[321719207,1712449329302,179.92310107,0.00018888,2]
[321719208,1712449329458,160.93004508,0.00020489,2]
[321719209,1712449332832,323.58888878,0.00018888,2]
[321719210,1712449617078,279.8934342,0.00020387,2]
[321719211,1712449741440,451.31011386,0.0002038,2]
[321719233,1712449831748,-150.0,0.00020606,2]
[321719234,1712449831758,-124.85691421,0.00020606,2]
[321719235,1712449831770,-175.14308579,0.00020606,2]
[321719236,1712449831779,-162.58220774,0.00020607,2]
[321719237,1712449831788,-334.54245674,0.00020607,2]
[321719238,1712449832082,-12661.71816287,0.00020607,2]
[321719239,1712449832094,-1136.49675934,0.00020607,2]
[321719244,1712449837768,-322.28237047,0.00020607,2]
[321719245,1712449837992,-196.03425058,0.00020607,2]
[321719246,1712449838002,-1289.8622422,0.00020707,2]
[321719247,1712449838012,-262.4,0.00020799,2]
[321719248,1712449838025,-844.07,0.00020806,2]
[321719249,1712449838035,-382.53490635,0.00020816,2]
[321719272,1712449839776,-355.06509365,0.00020816,2]
[321719273,1712449839787,-183.75,0.00020825,2]
[321719274,1712449839797,-154.25609689,0.0002091,2]
[321719275,1712449839810,-8.32611083,0.0002091,2]
[321719276,1712449839820,-1450.0,0.00021,3]
[321719277,1712449839831,-192.289917,0.00021096,2]
[321719278,1712449839842,-714.42,0.00021152,2]
[321719279,1712449839852,-162.58220772,0.00021212,2]
[321719280,1712449839862,-6164.21,0.00021396,2]
[321719281,1712449839872,-570.12,0.00021441,2]
[321719282,1712449839882,-924.01,0.00021441,2]
[321719283,1712449839892,-162.58220772,0.00021515,2]
[321719284,1712449839902,-2925.66009947,0.00021683,2]
[321719285,1712449839914,-357.6872336,0.00021683,2]
[321719286,1712449841028,-4391.21530265,0.00021683,2]
[321719287,1712449841045,-67071.03392549,0.00021683,2]
[321719288,1712449841061,-255.3859,0.00021699,2]
[321719289,1712449841071,-11860.34971795,0.00021699,2]
[321719290,1712449841081,-4605.49351845,0.00021699,2]
[321719291,1712449841090,-150.0,0.00021736,2]
[321719292,1712449841100,-150.0,0.00021736,2]